[Event "*** Titled Tuesday Blitz"]
[Site "Chess.com"]
[Date "2021.02.09"]
[Round "6"]
[White "Nils_03"]
[Black "dragos420"]
[Result "1-0"]
[WhiteElo "2354"]
[BlackElo "2477"]
[TimeControl "180+1"]
[EndTime "11:09:17 PST"]
[Termination "Nils_03 won by checkmate"]

1. e4 {[%clk 0:03:00.9]} 1... e5 {[%clk 0:02:59.3]} 2. Nf3 {[%clk 0:02:59.6]}
2... Nc6 {[%clk 0:03:00.2]} 3. d4 {[%clk 0:03:00.2]} 3... exd4 {[%clk
0:02:56.4]} 4. Nxd4 {[%clk 0:03:01.1]} 4... Nf6 {[%clk 0:02:56.4]} 5. Nc3 {[%clk
0:02:59.5]} 5... Bb4 {[%clk 0:02:56]} 6. Nxc6 {[%clk 0:02:59.6]} 6... bxc6
{[%clk 0:02:56.9]} 7. Bd3 {[%clk 0:02:59.9]} 7... d5 {[%clk 0:02:56.8]} 8. exd5
{[%clk 0:02:58.9]} 8... O-O {[%clk 0:02:57.4]} 9. O-O {[%clk 0:02:58.9]} 9...
cxd5 {[%clk 0:02:57.7]} 10. Qf3 {[%clk 0:02:54.7]} 10... c6 {[%clk 0:02:54.6]}
11. Bg5 {[%clk 0:02:54.1]} 11... h6 {[%clk 0:02:46.6]} 12. Bxf6 {[%clk
0:02:53.1]} 12... Qxf6 {[%clk 0:02:47.3]} 13. Qxf6 {[%clk 0:02:53.4]} 13... gxf6
{[%clk 0:02:48.2]} 14. Ne2 {[%clk 0:02:52.1]} 14... Rb8 {[%clk 0:02:31.3]} 15.
b3 {[%clk 0:02:49.3]} 15... Bd7 {[%clk 0:02:27.7]} 16. Ng3 {[%clk 0:02:48.4]}
16... Bc3 {[%clk 0:02:15.3]} 17. Rad1 {[%clk 0:02:47.3]} 17... Rfe8 {[%clk
0:02:04]} 18. Bf5 {[%clk 0:02:38.5]} 18... Rbd8 {[%clk 0:01:56.7]} 19. Bxd7
{[%clk 0:02:35.7]} 19... Rxd7 {[%clk 0:01:57.6]} 20. Rd3 {[%clk 0:02:35.4]}
20... Be5 {[%clk 0:01:51.5]} 21. Nf5 {[%clk 0:02:34.6]} 21... Kh7 {[%clk
0:01:36.1]} 22. h4 {[%clk 0:02:27.5]} 22... Rg8 {[%clk 0:01:31.4]} 23. c4 {[%clk
0:02:14.4]} 23... d4 {[%clk 0:01:05.9]} 24. c5 {[%clk 0:01:56.7]} 24... Rg4
{[%clk 0:00:59.6]} 25. f3 {[%clk 0:01:45.5]} 25... Rf4 {[%clk 0:00:57.9]} 26. g4
{[%clk 0:01:25.1]} 26... h5 {[%clk 0:00:54.3]} 27. Ne3 {[%clk 0:01:23.2]} 27...
dxe3 {[%clk 0:00:38.5]} 28. Rxd7 {[%clk 0:01:22.4]} 28... hxg4 {[%clk
0:00:25.3]} 29. fxg4 {[%clk 0:01:04.9]} 29... Rxg4+ {[%clk 0:00:21.8]} 30. Kh1
{[%clk 0:01:04.8]} 30... Re4 {[%clk 0:00:22.4]} 31. Re1 {[%clk 0:00:54]} 31...
Kg6 {[%clk 0:00:11.7]} 32. Kg2 {[%clk 0:00:50.6]} 32... f5 {[%clk 0:00:08.2]}
33. Kf3 {[%clk 0:00:48.2]} 33... Rf4+ {[%clk 0:00:05.9]} 34. Kxe3 {[%clk
0:00:45.8]} 34... Re4+ {[%clk 0:00:06.3]} 35. Kd2 {[%clk 0:00:42.1]} 35... Bc3+
{[%clk 0:00:06.6]} 36. Kxc3 {[%clk 0:00:42.6]} 36... Rxe1 {[%clk 0:00:07.5]} 37.
Rd6+ {[%clk 0:00:38.7]} 37... Kh5 {[%clk 0:00:06.7]} 38. Rxc6 {[%clk 0:00:38.2]}
38... f4 {[%clk 0:00:06.5]} 39. Rf6 {[%clk 0:00:38]} 39... Kg4 {[%clk
0:00:06.8]} 40. Kd2 {[%clk 0:00:36.3]} 40... Re7 {[%clk 0:00:04.2]} 41. h5
{[%clk 0:00:33.6]} 41... Kg5 {[%clk 0:00:04.1]} 42. Rd6 {[%clk 0:00:29.1]} 42...
Kxh5 {[%clk 0:00:04.6]} 43. c6 {[%clk 0:00:28.3]} 43... Rc7 {[%clk 0:00:03.9]}
44. Ke2 {[%clk 0:00:28.2]} 44... Kg4 {[%clk 0:00:04.3]} 45. Kf2 {[%clk
0:00:28.4]} 45... f5 {[%clk 0:00:04.6]} 46. b4 {[%clk 0:00:26.5]} 46... Kg5
{[%clk 0:00:04.5]} 47. a4 {[%clk 0:00:26.2]} 47... Rc8 {[%clk 0:00:03.9]} 48. b5
{[%clk 0:00:26.2]} 48... Rh8 {[%clk 0:00:03.4]} 49. c7 {[%clk 0:00:25.2]} 49...
Rc8 {[%clk 0:00:03]} 50. Rc6 {[%clk 0:00:24.8]} 50... Kg4 {[%clk 0:00:02]} 51.
a5 {[%clk 0:00:24.6]} 51... Rh8 {[%clk 0:00:01.5]} 52. c8=Q {[%clk 0:00:23.5]}
52... Rh2+ {[%clk 0:00:01.4]} 53. Kg1 {[%clk 0:00:22.9]} 53... Ra2 {[%clk
0:00:02.3]} 54. Rg6+ {[%clk 0:00:21.5]} 54... Kf3 {[%clk 0:00:02.2]} 55. Qc3+
{[%clk 0:00:20.7]} 55... Ke4 {[%clk 0:00:02.4]} 56. Qc4+ {[%clk 0:00:20.7]}
56... Ke5 {[%clk 0:00:03.3]} 57. Qxa2 {[%clk 0:00:20.8]} 57... f3 {[%clk
0:00:03.8]} 58. Qe6+ {[%clk 0:00:20.8]} 58... Kf4 {[%clk 0:00:04.7]} 59. Rf6
{[%clk 0:00:20.6]} 59... f2+ {[%clk 0:00:05.6]} 60. Kxf2 {[%clk 0:00:20.2]}
60... a6 {[%clk 0:00:05.9]} 61. Qxf5# {[%clk 0:00:19.9]} 1-0

[Event "*** Titled Tuesday Blitz"]
[Site "Chess.com"]
[Date "2021.02.09"]
[Round "6"]
[White "jens1102"]
[Black "MPGM"]
[Result "0-1"]
[WhiteElo "2456"]
[BlackElo "2618"]
[TimeControl "180+1"]
[EndTime "11:09:20 PST"]
[Termination "MPGM won by checkmate"]

1. e4 {[%clk 0:03:00.9]} 1... e5 {[%clk 0:02:58.3]} 2. Nf3 {[%clk 0:02:59.8]}
2... Nc6 {[%clk 0:02:57.7]} 3. Bc4 {[%clk 0:03:00.5]} 3... Bc5 {[%clk
0:02:48.8]} 4. c3 {[%clk 0:03:01]} 4... Nf6 {[%clk 0:02:48.3]} 5. d3 {[%clk
0:03:01.7]} 5... O-O {[%clk 0:02:44.8]} 6. O-O {[%clk 0:03:02.3]} 6... a6 {[%clk
0:02:44.6]} 7. b4 {[%clk 0:03:01.7]} 7... Ba7 {[%clk 0:02:43.3]} 8. a4 {[%clk
0:03:02.6]} 8... d6 {[%clk 0:02:40.2]} 9. Be3 {[%clk 0:03:02.4]} 9... Bxe3
{[%clk 0:02:34.5]} 10. fxe3 {[%clk 0:03:03.3]} 10... d5 {[%clk 0:02:22.3]} 11.
exd5 {[%clk 0:03:03]} 11... Nxd5 {[%clk 0:02:23.2]} 12. Qe2 {[%clk 0:02:42.4]}
12... Be6 {[%clk 0:02:12.3]} 13. Bxd5 {[%clk 0:02:36.9]} 13... Bxd5 {[%clk
0:02:07.4]} 14. e4 {[%clk 0:02:36.9]} 14... Be6 {[%clk 0:02:03.9]} 15. Nbd2
{[%clk 0:02:32.8]} 15... Qd6 {[%clk 0:01:32.7]} 16. Ng5 {[%clk 0:01:44.4]} 16...
Rad8 {[%clk 0:01:31.2]} 17. Nxe6 {[%clk 0:01:29.5]} 17... Qxe6 {[%clk
0:01:14.7]} 18. Nc4 {[%clk 0:01:19.9]} 18... Ne7 {[%clk 0:01:00.5]} 19. Qe3
{[%clk 0:01:16.6]} 19... Ng6 {[%clk 0:00:57.8]} 20. Rf5 {[%clk 0:01:09.7]} 20...
f6 {[%clk 0:00:52.4]} 21. Rd1 {[%clk 0:00:50]} 21... Nf4 {[%clk 0:00:48.7]} 22.
Rxf4 {[%clk 0:00:38.6]} 22... exf4 {[%clk 0:00:49.6]} 23. Qxf4 {[%clk
0:00:39.3]} 23... c6 {[%clk 0:00:38.5]} 24. Rd2 {[%clk 0:00:26.1]} 24... Rf7
{[%clk 0:00:36.1]} 25. Qe3 {[%clk 0:00:08.8]} 25... Rfd7 {[%clk 0:00:30.4]} 26.
h3 {[%clk 0:00:09]} 26... b5 {[%clk 0:00:22.9]} 27. Nb6 {[%clk 0:00:09.2]} 27...
Re7 {[%clk 0:00:20.9]} 28. a5 {[%clk 0:00:08.4]} 28... f5 {[%clk 0:00:19.7]} 29.
Re2 {[%clk 0:00:03.9]} 29... fxe4 {[%clk 0:00:19.8]} 30. dxe4 {[%clk 0:00:03.8]}
30... Rd1+ {[%clk 0:00:15.6]} 31. Kh2 {[%clk 0:00:04.3]} 31... Qe5+ {[%clk
0:00:15.7]} 32. g3 {[%clk 0:00:04.6]} 32... Rf7 {[%clk 0:00:11]} 33. Nc8 {[%clk
0:00:03.2]} 33... Qf6 {[%clk 0:00:05.7]} 34. Nb6 {[%clk 0:00:02.5]} 34... Qf1
{[%clk 0:00:05.5]} 35. g4 {[%clk 0:00:01.8]} 35... Qh1+ {[%clk 0:00:03.9]} 36.
Kg3 {[%clk 0:00:02.5]} 36... Rg1+ {[%clk 0:00:04.3]} 37. Kh4 {[%clk 0:00:03.4]}
37... h6 {[%clk 0:00:04.2]} 38. Qd4 {[%clk 0:00:03.9]} 38... g5+ {[%clk
0:00:04.1]} 39. Kh5 {[%clk 0:00:04.6]} 39... Qxh3+ {[%clk 0:00:03.8]} 40. Kg6
{[%clk 0:00:05.3]} 40... Rgf1 {[%clk 0:00:03.8]} 41. Qd8+ {[%clk 0:00:05.6]}
41... Rf8 {[%clk 0:00:03.9]} 42. Qe7 {[%clk 0:00:06.1]} 42... R1f7 {[%clk
0:00:04.3]} 43. Qe6 {[%clk 0:00:06]} 43... Qf3 {[%clk 0:00:03.3]} 44. Rd2 {[%clk
0:00:05]} 44... Qf6+ {[%clk 0:00:03.4]} 45. Qxf6 {[%clk 0:00:05.6]} 45... Rxf6+
{[%clk 0:00:04.3]} 46. Kh5 {[%clk 0:00:06.1]} 46... Kg7 {[%clk 0:00:03.9]} 47.
Nd7 {[%clk 0:00:05.4]} 47... Rf1 {[%clk 0:00:04]} 48. Rh2 {[%clk 0:00:03.8]}
48... R8f2 {[%clk 0:00:04.2]} 49. Rh3 {[%clk 0:00:03]} 49... Rf3 {[%clk
0:00:03.7]} 50. Rh2 {[%clk 0:00:03.6]} 50... Rxc3 {[%clk 0:00:03.9]} 51. Ne5
{[%clk 0:00:03.5]} 51... Rcc1 {[%clk 0:00:03.8]} 52. Ng6 {[%clk 0:00:02.8]}
52... Rh1 {[%clk 0:00:03.7]} 53. Nh4 {[%clk 0:00:03.6]} 53... Rxh2 {[%clk
0:00:03.8]} 54. e5 {[%clk 0:00:03.5]} 54... Rxh4# {[%clk 0:00:03.6]} 0-1

[Event "*** Titled Tuesday Blitz"]
[Site "Chess.com"]
[Date "2021.02.09"]
[Round "6"]
[White "Kaliopa"]
[Black "dosto07"]
[Result "1-0"]
[WhiteElo "2195"]
[BlackElo "2384"]
[TimeControl "180+1"]
[EndTime "11:09:20 PST"]
[Termination "Kaliopa won on time"]

1. e4 {[%clk 0:03:00.9]} 1... e5 {[%clk 0:02:57.8]} 2. Nf3 {[%clk 0:03:00.6]}
2... Nc6 {[%clk 0:02:56.3]} 3. Nc3 {[%clk 0:02:58]} 3... Nf6 {[%clk 0:02:55]} 4.
Bb5 {[%clk 0:02:58.3]} 4... Bb4 {[%clk 0:02:53.6]} 5. O-O {[%clk 0:02:57.5]}
5... O-O {[%clk 0:02:51.3]} 6. d3 {[%clk 0:02:57.4]} 6... d6 {[%clk 0:02:50.4]}
7. Ne2 {[%clk 0:02:56.9]} 7... Ne7 {[%clk 0:02:46]} 8. c3 {[%clk 0:02:56.9]}
8... Ba5 {[%clk 0:02:45.4]} 9. Ng3 {[%clk 0:02:56.8]} 9... c6 {[%clk 0:02:42.8]}
10. Ba4 {[%clk 0:02:56.3]} 10... Ng6 {[%clk 0:02:39.1]} 11. d4 {[%clk
0:02:54.7]} 11... Bb6 {[%clk 0:02:30.2]} 12. h3 {[%clk 0:02:51.5]} 12... h6
{[%clk 0:02:28.4]} 13. Bc2 {[%clk 0:02:44.3]} 13... Re8 {[%clk 0:02:27.1]} 14.
Re1 {[%clk 0:02:42.5]} 14... Nh7 {[%clk 0:02:16.7]} 15. Nf5 {[%clk 0:02:25.8]}
15... Be6 {[%clk 0:01:58.4]} 16. Be3 {[%clk 0:02:24.2]} 16... Ng5 {[%clk
0:01:51.4]} 17. Nxg5 {[%clk 0:02:00.2]} 17... hxg5 {[%clk 0:01:50.7]} 18. Qg4
{[%clk 0:01:56.1]} 18... f6 {[%clk 0:01:47.5]} 19. Bb3 {[%clk 0:01:47]} 19...
Qd7 {[%clk 0:01:40.6]} 20. Rad1 {[%clk 0:01:33.9]} 20... Rad8 {[%clk 0:01:25.2]}
21. dxe5 {[%clk 0:01:28.8]} 21... Nxe5 {[%clk 0:01:17.7]} 22. Qg3 {[%clk
0:01:16.9]} 22... d5 {[%clk 0:01:13.9]} 23. exd5 {[%clk 0:01:06.7]} 23... cxd5
{[%clk 0:01:13.4]} 24. Bxb6 {[%clk 0:01:04]} 24... axb6 {[%clk 0:01:11.6]} 25.
Nd4 {[%clk 0:01:01.8]} 25... Bf7 {[%clk 0:01:08.8]} 26. Nf3 {[%clk 0:00:52.6]}
26... Nxf3+ {[%clk 0:01:06.7]} 27. Qxf3 {[%clk 0:00:53.5]} 27... Rxe1+ {[%clk
0:01:03.2]} 28. Rxe1 {[%clk 0:00:52.4]} 28... Re8 {[%clk 0:01:03.4]} 29. Re3
{[%clk 0:00:46.4]} 29... Re5 {[%clk 0:00:51.8]} 30. Rxe5 {[%clk 0:00:40]} 30...
fxe5 {[%clk 0:00:51]} 31. Qe3 {[%clk 0:00:39.7]} 31... Qe7 {[%clk 0:00:48.9]}
32. Qxb6 {[%clk 0:00:36.8]} 32... e4 {[%clk 0:00:45.8]} 33. Qd4 {[%clk
0:00:34.6]} 33... Qe6 {[%clk 0:00:31.7]} 34. a4 {[%clk 0:00:33.5]} 34... Kh8
{[%clk 0:00:29.5]} 35. a5 {[%clk 0:00:32.1]} 35... Qf5 {[%clk 0:00:28.7]} 36.
Bd1 {[%clk 0:00:19.2]} 36... Qf4 {[%clk 0:00:25.8]} 37. Qe3 {[%clk 0:00:17.7]}
37... Qf6 {[%clk 0:00:22.8]} 38. b4 {[%clk 0:00:17.3]} 38... Be6 {[%clk
0:00:22.2]} 39. Qd4 {[%clk 0:00:16.4]} 39... Qf4 {[%clk 0:00:21.5]} 40. Qe3
{[%clk 0:00:16.5]} 40... Qf6 {[%clk 0:00:19.6]} 41. Bg4 {[%clk 0:00:14.4]} 41...
Bf7 {[%clk 0:00:16.4]} 42. g3 {[%clk 0:00:13]} 42... Qe5 {[%clk 0:00:14.9]} 43.
Qd4 {[%clk 0:00:13.1]} 43... Qc7 {[%clk 0:00:13]} 44. Kg2 {[%clk 0:00:13.2]}
44... Qe7 {[%clk 0:00:11.9]} 45. Be2 {[%clk 0:00:12.8]} 45... Qd7 {[%clk
0:00:10.4]} 46. a6 {[%clk 0:00:13]} 46... bxa6 {[%clk 0:00:09.4]} 47. Bxa6
{[%clk 0:00:13.9]} 47... Be6 {[%clk 0:00:09.6]} 48. g4 {[%clk 0:00:09.8]} 48...
Qf7 {[%clk 0:00:07.7]} 49. Be2 {[%clk 0:00:09]} 49... Qf4 {[%clk 0:00:07.6]} 50.
Qe3 {[%clk 0:00:09.3]} 50... Qe5 {[%clk 0:00:07.3]} 51. b5 {[%clk 0:00:09.6]}
51... Bc8 {[%clk 0:00:05.2]} 52. b6 {[%clk 0:00:09.9]} 52... Qd6 {[%clk
0:00:05.2]} 53. Qd4 {[%clk 0:00:10]} 53... Bb7 {[%clk 0:00:04]} 54. c4 {[%clk
0:00:09.6]} 54... Qb4 {[%clk 0:00:02.4]} 55. Qe5 {[%clk 0:00:06.1]} 55... dxc4
{[%clk 0:00:01.6]} 56. Qe8+ {[%clk 0:00:06.1]} 1-0

[Event "*** Titled Tuesday Blitz"]
[Site "Chess.com"]
[Date "2021.02.09"]
[Round "6"]
[White "Alexander_Moskalenko"]
[Black "dozer80"]
[Result "1-0"]
[WhiteElo "2790"]
[BlackElo "2610"]
[TimeControl "180+1"]
[EndTime "11:09:21 PST"]
[Termination "Alexander_Moskalenko won by resignation"]

1. d4 {[%clk 0:02:17.6]} 1... d5 {[%clk 0:02:57.6]} 2. Bg5 {[%clk 0:02:18]} 2...
Nf6 {[%clk 0:02:49.4]} 3. Bxf6 {[%clk 0:02:16.4]} 3... exf6 {[%clk 0:02:50.3]}
4. e3 {[%clk 0:02:17.3]} 4... c6 {[%clk 0:02:48.8]} 5. Nd2 {[%clk 0:02:18.2]}
5... Bd6 {[%clk 0:02:48.6]} 6. Bd3 {[%clk 0:02:18.9]} 6... O-O {[%clk
0:02:48.1]} 7. Qf3 {[%clk 0:02:19.5]} 7... Nd7 {[%clk 0:02:38.4]} 8. g4 {[%clk
0:02:17.2]} 8... Re8 {[%clk 0:02:30]} 9. h4 {[%clk 0:02:14]} 9... Nf8 {[%clk
0:02:29.8]} 10. Ne2 {[%clk 0:02:08.9]} 10... c5 {[%clk 0:01:33.1]} 11. dxc5
{[%clk 0:02:06.4]} 11... Bxc5 {[%clk 0:01:31.7]} 12. O-O-O {[%clk 0:02:07.1]}
12... Be6 {[%clk 0:01:27.5]} 13. Nb3 {[%clk 0:02:06.3]} 13... Bd6 {[%clk
0:01:24.4]} 14. Nbd4 {[%clk 0:02:06]} 14... Ng6 {[%clk 0:00:43.2]} 15. Bxg6
{[%clk 0:01:59.4]} 15... hxg6 {[%clk 0:00:44.1]} 16. h5 {[%clk 0:01:59.8]} 16...
g5 {[%clk 0:00:44.2]} 17. Nf5 {[%clk 0:01:54.5]} 17... Be5 {[%clk 0:00:41.7]}
18. h6 {[%clk 0:01:54.9]} 18... g6 {[%clk 0:00:40.5]} 19. Ng7 {[%clk 0:01:55.3]}
19... Qa5 {[%clk 0:00:34.4]} 20. Kb1 {[%clk 0:01:48.9]} 20... d4 {[%clk
0:00:33.1]} 21. Nxe6 {[%clk 0:01:47.4]} 21... Rxe6 {[%clk 0:00:34]} 22. Nxd4
{[%clk 0:01:46.9]} 22... Ra6 {[%clk 0:00:32.4]} 23. a3 {[%clk 0:01:43.2]} 23...
Rb6 {[%clk 0:00:32.1]} 24. Nb3 {[%clk 0:01:41.5]} 24... Qa4 {[%clk 0:00:30.3]}
25. Rd3 {[%clk 0:01:35.6]} 25... Kh7 {[%clk 0:00:23.6]} 26. Qd5 {[%clk
0:01:34.9]} 26... Rf8 {[%clk 0:00:22]} 27. Qc5 {[%clk 0:01:32.7]} 27... Re8
{[%clk 0:00:16.9]} 28. Qd5 {[%clk 0:01:08.3]} 28... Rf8 {[%clk 0:00:14.9]} 29.
f3 {[%clk 0:01:07.8]} 29... Qe8 {[%clk 0:00:12.2]} 30. Qd7 {[%clk 0:01:07]}
30... a5 {[%clk 0:00:11.1]} 31. Qxe8 {[%clk 0:00:57.4]} 31... Rxe8 {[%clk
0:00:12]} 32. a4 {[%clk 0:00:57]} 32... Rb4 {[%clk 0:00:11.5]} 33. Rd7 {[%clk
0:00:56.9]} 33... Rf8 {[%clk 0:00:10.7]} 34. Rhd1 {[%clk 0:00:50.7]} 34... b6
{[%clk 0:00:10.6]} 35. Rb7 {[%clk 0:00:45.3]} 35... Kxh6 {[%clk 0:00:10.1]} 36.
Rdd7 {[%clk 0:00:40.7]} 36... Kg7 {[%clk 0:00:10.2]} 37. Kc1 {[%clk 0:00:35.8]}
37... Rxa4 {[%clk 0:00:09.1]} 38. Rxb6 {[%clk 0:00:35.6]} 38... Ra2 {[%clk
0:00:09.7]} 39. Nd4 {[%clk 0:00:30.8]} 39... Rc8 {[%clk 0:00:06.4]} 40. Rbb7
{[%clk 0:00:24.4]} 40... Bxd4 {[%clk 0:00:05]} 41. exd4 {[%clk 0:00:24]} 41...
Rf8 {[%clk 0:00:04.5]} 42. c4 {[%clk 0:00:20.5]} 42... Ra1+ {[%clk 0:00:05.2]}
43. Kc2 {[%clk 0:00:20.6]} 43... Rf1 {[%clk 0:00:05.5]} 44. c5 {[%clk 0:00:21]}
44... Rf2+ {[%clk 0:00:05.2]} 45. Kb1 {[%clk 0:00:20]} 45... Rxf3 {[%clk
0:00:05.7]} 46. c6 {[%clk 0:00:20.5]} 46... Rd3 {[%clk 0:00:05]} 47. Rxf7+
{[%clk 0:00:18.9]} 47... Rxf7 {[%clk 0:00:04.7]} 48. Rxf7+ {[%clk 0:00:19.8]}
48... Kxf7 {[%clk 0:00:04.8]} 49. c7 {[%clk 0:00:20.7]} 49... Rd1+ {[%clk
0:00:05.1]} 50. Kc2 {[%clk 0:00:20.6]} 50... Rxd4 {[%clk 0:00:05.2]} 51. c8=Q
{[%clk 0:00:21]} 51... Rd6 {[%clk 0:00:06]} 52. Qc7+ {[%clk 0:00:20.6]} 52...
Ke6 {[%clk 0:00:06.3]} 53. Qxa5 {[%clk 0:00:20.8]} 53... f5 {[%clk 0:00:07]} 54.
Qc5 {[%clk 0:00:18.8]} 54... Kd7 {[%clk 0:00:05.8]} 55. gxf5 {[%clk 0:00:16.8]}
55... Rc6 {[%clk 0:00:04.3]} 56. Qxc6+ {[%clk 0:00:17.2]} 56... Kxc6 {[%clk
0:00:05.2]} 57. fxg6 {[%clk 0:00:18.1]} 57... g4 {[%clk 0:00:05.9]} 58. g7
{[%clk 0:00:19]} 58... g3 {[%clk 0:00:06.8]} 59. g8=Q {[%clk 0:00:19.7]} 59...
g2 {[%clk 0:00:07.7]} 60. Qxg2+ {[%clk 0:00:20]} 1-0

[Event "*** Titled Tuesday Blitz"]
[Site "Chess.com"]
[Date "2021.02.09"]
[Round "6"]
[White "oneshot007"]
[Black "bascheyaro"]
[Result "1-0"]
[WhiteElo "2562"]
[BlackElo "2734"]
[TimeControl "180+1"]
[EndTime "11:09:21 PST"]
[Termination "oneshot007 won by checkmate"]

1. e4 {[%clk 0:03:00.9]} 1... e6 {[%clk 0:03:00.1]} 2. d4 {[%clk 0:02:59.4]}
2... d5 {[%clk 0:03:01]} 3. Nc3 {[%clk 0:03:00.2]} 3... Bb4 {[%clk 0:03:00.3]}
4. e5 {[%clk 0:02:56.8]} 4... Ne7 {[%clk 0:03:00.4]} 5. h4 {[%clk 0:02:55.5]}
5... b6 {[%clk 0:03:00]} 6. h5 {[%clk 0:02:47.5]} 6... h6 {[%clk 0:02:59.6]} 7.
Qg4 {[%clk 0:02:38.1]} 7... Nf5 {[%clk 0:02:59.3]} 8. Bd3 {[%clk 0:02:30.5]}
8... Kf8 {[%clk 0:02:58.9]} 9. Nf3 {[%clk 0:02:28]} 9... c5 {[%clk 0:02:57.4]}
10. a3 {[%clk 0:02:25.3]} 10... Bxc3+ {[%clk 0:02:49.8]} 11. bxc3 {[%clk
0:02:26.2]} 11... Qd7 {[%clk 0:02:37.6]} 12. a4 {[%clk 0:02:25.7]} 12... Ba6
{[%clk 0:02:35.6]} 13. Ba3 {[%clk 0:02:19.4]} 13... Bxd3 {[%clk 0:02:35.1]} 14.
cxd3 {[%clk 0:02:19.4]} 14... Qc7 {[%clk 0:02:34.4]} 15. O-O {[%clk 0:02:13.9]}
15... Kg8 {[%clk 0:02:33.3]} 16. c4 {[%clk 0:02:13.8]} 16... dxc4 {[%clk
0:02:28.3]} 17. Rfc1 {[%clk 0:02:07]} 17... Nc6 {[%clk 0:02:20.9]} 18. Rxc4
{[%clk 0:02:01.8]} 18... Rd8 {[%clk 0:02:12.9]} 19. Rac1 {[%clk 0:01:58]} 19...
Qb8 {[%clk 0:02:06.2]} 20. dxc5 {[%clk 0:01:56]} 20... Nxe5 {[%clk 0:02:00.5]}
21. Nxe5 {[%clk 0:01:53.4]} 21... Qxe5 {[%clk 0:02:01.4]} 22. c6 {[%clk
0:01:49.4]} 22... Kh7 {[%clk 0:02:00.7]} 23. Qe4 {[%clk 0:01:38.7]} 23... f6
{[%clk 0:01:00.1]} 24. g4 {[%clk 0:01:22.4]} 24... Qxe4 {[%clk 0:00:59.9]} 25.
dxe4 {[%clk 0:01:22.2]} 25... Nh4 {[%clk 0:01:00]} 26. c7 {[%clk 0:01:07.9]}
26... Rc8 {[%clk 0:00:59.9]} 27. R4c3 {[%clk 0:01:07.2]} 27... g6 {[%clk
0:00:37.2]} 28. Rh3 {[%clk 0:00:58.3]} 28... g5 {[%clk 0:00:36.1]} 29. Rd3
{[%clk 0:00:57.8]} 29... Rhg8 {[%clk 0:00:36.4]} 30. Be7 {[%clk 0:00:51.4]}
30... f5 {[%clk 0:00:29.1]} 31. Rd7 {[%clk 0:00:25.6]} 31... Nf3+ {[%clk
0:00:21.3]} 32. Kg2 {[%clk 0:00:25.5]} 32... Ne5 {[%clk 0:00:18.4]} 33. Rd6
{[%clk 0:00:25.9]} 33... Nxg4 {[%clk 0:00:17.5]} 34. Rxe6 {[%clk 0:00:21.1]}
34... fxe4 {[%clk 0:00:17.8]} 35. Kg3 {[%clk 0:00:19.6]} 35... e3 {[%clk
0:00:15.2]} 36. fxe3 {[%clk 0:00:11.5]} 36... Rge8 {[%clk 0:00:07.9]} 37. Kxg4
{[%clk 0:00:11.3]} 37... Kg7 {[%clk 0:00:08.3]} 38. Kf5 {[%clk 0:00:11.7]} 38...
Kf7 {[%clk 0:00:08.8]} 39. Rxh6 {[%clk 0:00:09.6]} 39... Kxe7 {[%clk 0:00:07.5]}
40. Re6+ {[%clk 0:00:09.7]} 40... Kf7 {[%clk 0:00:07.6]} 41. Rxe8 {[%clk
0:00:10.1]} 41... Kxe8 {[%clk 0:00:08.4]} 42. Kxg5 {[%clk 0:00:09.4]} 42... Kd7
{[%clk 0:00:09]} 43. h6 {[%clk 0:00:09.5]} 43... Rg8+ {[%clk 0:00:09.1]} 44. Kf6
{[%clk 0:00:10]} 44... Kc8 {[%clk 0:00:10]} 45. h7 {[%clk 0:00:10.3]} 45... Rh8
{[%clk 0:00:10.1]} 46. Kg7 {[%clk 0:00:10.6]} 46... Rxh7+ {[%clk 0:00:11]} 47.
Kxh7 {[%clk 0:00:11.5]} 47... a6 {[%clk 0:00:11.9]} 48. Kg7 {[%clk 0:00:11.8]}
48... b5 {[%clk 0:00:12.8]} 49. axb5 {[%clk 0:00:11.8]} 49... axb5 {[%clk
0:00:13.7]} 50. e4 {[%clk 0:00:12.2]} 50... b4 {[%clk 0:00:14.6]} 51. e5 {[%clk
0:00:12.7]} 51... b3 {[%clk 0:00:15.1]} 52. e6 {[%clk 0:00:12.1]} 52... b2
{[%clk 0:00:16]} 53. Rb1 {[%clk 0:00:12.6]} 53... Kxc7 {[%clk 0:00:16.7]} 54. e7
{[%clk 0:00:12.6]} 54... Kd6 {[%clk 0:00:17.6]} 55. Kf7 {[%clk 0:00:13.1]} 55...
Kc5 {[%clk 0:00:17.7]} 56. e8=Q {[%clk 0:00:13.5]} 56... Kd4 {[%clk 0:00:18.6]}
57. Qb5 {[%clk 0:00:10.5]} 57... Kc3 {[%clk 0:00:19.5]} 58. Qxb2+ {[%clk
0:00:10.7]} 58... Kc4 {[%clk 0:00:18.8]} 59. Qc2+ {[%clk 0:00:10.4]} 59... Kd5
{[%clk 0:00:19.2]} 60. Rd1+ {[%clk 0:00:11.3]} 60... Ke5 {[%clk 0:00:19.7]} 61.
Qe2+ {[%clk 0:00:12.2]} 61... Kf4 {[%clk 0:00:20.6]} 62. Rf1+ {[%clk 0:00:13]}
62... Kg3 {[%clk 0:00:20.6]} 63. Qf2+ {[%clk 0:00:13.2]} 63... Kh3 {[%clk
0:00:20.6]} 64. Rh1+ {[%clk 0:00:12.9]} 64... Kg4 {[%clk 0:00:20.9]} 65. Rg1+
{[%clk 0:00:13]} 65... Kh5 {[%clk 0:00:21.8]} 66. Qh2# {[%clk 0:00:13.1]} 1-0